bitfinex-derivatives/quotes_BNBF0:USTF0_20250708
["timestamp","ask_amount","ask_price","bid_price","bid_amount"]
[1751941638668,2.73823574,659.81,659.27,2.348]
[1751941638869,1.70297808,659.82,659.27,2.348]
[1751941641765,2.73823574,659.82,659.27,2.348]
[1751941641968,1.70297808,659.82,659.27,2.348]
[1751941644370,1.70297808,659.81,659.27,2.348]
[1751941644966,1.70297808,659.82,659.27,2.348]
[1751941646270,1.70297808,659.8,659.27,2.348]
[1751941648776,1.70297808,659.79,659.29,2.25747183]
[1751941649569,1.70297808,659.81,659.3,2.25747183]
[1751941649767,1.70297808,659.81,659.29,2.25747183]
[1751941650769,1.70297808,659.81,659.3,2.25747183]
[1751941651369,1.70297808,659.8,659.3,2.25747183]
[1751941652169,1.70297808,659.81,659.3,2.25747183]
[1751941652370,1.70297808,659.8,659.3,2.25747183]
[1751941652870,0.47048637,659.91,659.3,2.25747183]
[1751941652871,1.70297808,659.81,659.3,2.25747183]
[1751941654672,1.70297808,659.85,659.35,2.25747183]
[1751941655073,1.70297808,659.85,659.36,2.25747183]
[1751941655270,1.70297808,659.86,659.35,2.25747183]
[1751941656371,1.70297808,659.87,659.35,2.25747183]
[1751941656570,1.70297808,659.86,659.36,2.25747183]
[1751941658070,1.70297808,659.87,659.35,2.25747183]
[1751941658276,1.70297808,659.87,659.36,2.25747183]
[1751941658475,1.70297808,659.9,659.37,2.25747183]
[1751941659777,1.70297808,659.9,659.38,2.25747183]
[1751941660176,2.73826671,659.9,659.37,2.25747183]
[1751941660379,1.70297808,659.9,659.37,2.25747183]
[1751941660581,1.70297808,659.9,659.38,2.25747183]
[1751941661083,1.70297808,659.9,659.37,2.25747183]
[1751941661282,1.70297808,659.91,659.36,2.25747183]
[1751941662379,1.70297808,659.91,659.35,2.25747183]
[1751941662782,1.70297808,659.91,659.36,2.25747183]
[1751941663277,1.70297808,659.92,659.36,2.25747183]
[1751941663581,2.73729529,659.92,659.36,2.25747183]
[1751941663781,1.70297808,659.92,659.35,2.25747183]
[1751941664179,1.70297808,659.92,659.36,2.25747183]
[1751941664378,1.70297808,659.91,659.37,2.25747183]
[1751941665282,1.70297808,659.91,659.36,2.25747183]
[1751941665688,1.70297808,659.92,659.36,2.25747183]
[1751941666080,1.70297808,659.92,659.35,2.25747183]
[1751941667383,1.70297808,659.93,659.34,2.25747183]
[1751941668484,1.70297808,659.92,659.35,2.25747183]
[1751941669085,1.70297808,659.93,659.35,2.25747183]
[1751941671187,1.70297808,659.92,659.36,2.25747183]
[1751941674289,1.70297808,659.93,659.36,2.25747183]
[1751941674687,1.03431721,659.94,659.27,2.348]
[1751941674892,1.70297808,659.99,659.27,2.348]
[1751941675491,1.70297808,659.98,659.27,2.348]
[1751941676089,1.70297808,659.99,659.22,2.25747183]
[1751941676689,1.70297808,659.98,659.21,2.25747183]
[1751941679591,1.70297808,659.98,659.22,1.598]
[1751941679792,1.70297808,659.97,659.22,1.598]
[1751941679996,0.46955201,660.12,659.22,1.598]
[1751941679997,1.70297808,659.99,659.22,1.598]
[1751941680291,1.70297808,660.0,659.22,1.598]
[1751941681292,1.70297808,659.94,659.22,1.598]
[1751941681593,1.70297808,659.92,659.22,1.598]
[1751941684596,1.70297808,659.9,659.22,1.598]
[1751941686301,1.70297808,659.89,659.22,1.598]
[1751941689402,1.70297808,659.88,659.22,1.598]
[1751941690305,1.70297808,659.87,659.22,1.598]
[1751941690505,1.70297808,659.86,659.22,3.85547183]
[1751941691505,1.70297808,659.84,659.26,2.25747183]
[1751941692208,1.70297808,659.85,659.26,2.25747183]
[1751941693309,1.70297808,659.85,659.24,2.25747183]
[1751941694808,1.70297808,659.86,659.24,2.25747183]
[1751941695204,1.70297808,659.86,659.22,1.598]
[1751941695205,1.70297808,659.86,659.23,2.25747183]
[1751941695509,1.70297808,659.86,659.24,2.25747183]
[1751941696105,1.70297808,659.85,659.26,2.25747183]
[1751941697409,1.70297808,659.84,659.26,2.25747183]
[1751941697713,1.70297808,659.85,659.26,2.25747183]
[1751941699114,1.70297808,659.84,659.26,2.25747183]
[1751941699314,1.70297808,659.84,659.22,1.598]
[1751941699315,1.70297808,659.84,659.27,2.25747183]
[1751941700617,1.70297808,659.84,659.26,2.25747183]
[1751941702015,1.70297808,659.85,659.24,2.25747183]
[1751941702218,1.70297808,659.85,659.23,2.25747183]
[1751941702419,1.70297808,659.85,659.24,2.25747183]
[1751941702619,1.70297808,659.85,659.25,2.25747183]
[1751941703119,1.70297808,659.85,659.24,2.25747183]
[1751941704016,1.70297808,659.84,659.25,2.25747183]
[1751941704319,1.70297808,659.84,659.24,2.25747183]
[1751941704615,1.70297808,659.84,659.25,2.25747183]
[1751941705020,1.70297808,659.84,659.24,2.25747183]
[1751941708024,1.70297808,659.85,659.22,1.598]
[1751941710924,1.70297808,659.85,659.22,3.85547183]
[1751941711927,1.70297808,659.84,659.23,2.25747183]
[1751941713722,1.70297808,659.85,659.22,1.598]
[1751941714323,1.70297808,659.81,659.22,1.598]
[1751941714525,1.70297808,659.82,659.22,1.598]
[1751941717927,1.70297808,659.81,659.22,1.598]
[1751941719628,1.70297808,659.81,659.2,2.25747183]
[1751941722132,1.70297808,659.81,659.21,1.663]
[1751941722532,1.70297808,659.83,659.21,1.663]
[1751941723629,1.70297808,659.82,659.21,1.663]
[1751941724729,2.73591986,659.82,659.21,1.663]
[1751941724934,1.70297808,659.82,659.21,1.663]
[1751941729238,1.70297808,659.86,659.22,2.25747183]
[1751941731133,1.70297808,659.86,659.23,2.25747183]
[1751941731338,1.70297808,659.87,659.23,2.25747183]
[1751941732136,1.70297808,659.86,659.24,2.25747183]
[1751941732540,1.70297808,659.85,659.27,2.25747183]
[1751941732740,1.70297808,659.86,659.28,2.25747183]
[1751941733338,1.70297808,659.86,659.29,2.25747183]
[1751941733537,1.70297808,659.85,659.28,2.25747183]
[1751941735142,1.70297808,659.84,659.28,2.25747183]
[1751941736038,1.70297808,659.85,659.3,2.25747183]
[1751941736243,1.70297808,659.84,659.3,2.25747183]
[1751941736445,2.3212065,659.95,659.3,2.25747183]
[1751941736446,1.70297808,659.85,659.3,2.25747183]
[1751941736744,1.70297808,659.84,659.31,2.25747183]
[1751941737143,1.70297808,659.84,659.32,2.25747183]
[1751941737743,1.70297808,659.84,659.31,2.25747183]
[1751941738243,2.3212065,659.94,659.21,1.663]
[1751941738244,1.70297808,659.83,659.34,2.25747183]
[1751941739145,1.70297808,659.82,659.34,2.25747183]
[1751941740744,1.7038967,659.82,659.34,2.25747183]
[1751941745350,1.7038967,659.83,659.34,2.25747183]
[1751941750758,1.7038967,659.85,659.3,2.25747183]
[1751941751159,1.7038967,659.85,659.29,2.25747183]
[1751941753563,1.7038967,659.86,659.27,2.25747183]
[1751941759872,1.7038967,659.86,659.26,2.25747183]
[1751941760573,1.7038967,659.85,659.29,2.25747183]
[1751941761074,1.7038967,659.85,659.3,2.454]
[1751941761675,1.7038967,659.86,659.3,2.454]
[1751941763577,1.7038967,659.85,659.3,4.71147183]
[1751941764676,1.7038967,659.88,659.3,2.454]
[1751941764875,1.7038967,659.91,659.3,2.454]
[1751941774687,1.7038967,659.89,659.31,2.25747183]
[1751941775388,1.7038967,659.88,659.31,2.25747183]
[1751941776791,1.7038967,659.89,659.28,2.25747183]
[1751941777292,1.7038967,659.9,659.29,2.25747183]
[1751941779793,1.7038967,659.9,659.3,2.25747183]
[1751941779991,1.7038967,659.9,659.3,4.25147183]
[1751941780292,1.7038967,659.9,659.3,1.994]
[1751941780488,1.7038967,659.9,659.3,4.25147183]
[1751941781295,1.7038967,659.89,659.32,2.25747183]
[1751941782493,1.7038967,659.89,659.31,2.25747183]
[1751941786494,1.7038967,659.88,659.32,2.25747183]
[1751941786696,1.7038967,659.87,659.34,2.25747183]
[1751941788398,1.7038967,659.87,659.35,2.25747183]
[1751941790500,1.7038967,659.89,659.3,1.994]
[1751941792501,1.7038967,659.89,659.3,4.25147183]
[1751941794808,1.7038967,659.88,659.3,4.25147183]
[1751941797511,1.7038967,659.91,659.3,1.994]
[1751941800412,2.25208379,660.07,659.3,1.994]
[1751941800413,1.7038967,659.9,659.3,1.994]
[1751941807316,1.7038967,659.86,659.36,2.25747183]
[1751941809618,1.7038967,659.88,659.32,2.25747183]
[1751941810323,1.7038967,659.87,659.32,2.25747183]
[1751941813726,1.28904432,659.99,659.32,2.25747183]
[1751941813925,1.70441166,659.87,659.32,2.25747183]
[1751941814525,1.70441166,659.87,659.33,1.908]
[1751941815030,1.70441166,659.86,659.35,2.25747183]
[1751941816330,1.70441166,659.85,659.36,2.25747183]
[1751941818330,1.70441166,659.86,659.34,2.25747183]
[1751941819636,1.70467052,659.85,659.37,2.25747183]
[1751941822536,1.70467052,659.84,659.37,2.25747183]
[1751941823332,1.70467052,659.84,659.38,2.25747183]
[1751941823834,1.70467052,659.84,659.37,2.25747183]
[1751941824837,1.70467052,659.86,659.33,4.16547183]
[1751941826839,1.70467052,659.86,659.33,1.908]
[1751941828236,1.70467052,659.86,659.33,4.16547183]
[1751941829037,1.70467052,659.86,659.34,2.25747183]
[1751941830441,1.70467052,659.86,659.33,4.16547183]
[1751941831942,1.70467052,659.87,659.33,1.908]
[1751941832943,1.70467052,659.85,659.34,2.25747183]
[1751941833944,1.70467052,659.86,659.33,4.16547183]
[1751941834240,1.70467052,659.85,659.34,2.25747183]
[1751941834644,1.70467052,659.84,659.37,2.25747183]
[1751941835746,1.70467052,659.84,659.38,2.25747183]
[1751941836544,1.70467052,659.83,659.39,2.25747183]
[1751941840549,1.70467052,659.85,659.36,2.25747183]
[1751941841152,1.70467052,659.84,659.37,2.25747183]
[1751941841351,1.70467052,659.88,659.39,2.25747183]
[1751941841550,1.70467052,659.88,659.38,2.25747183]
[1751941842152,1.70467052,659.89,659.39,2.25747183]
[1751941842953,1.70467052,659.89,659.38,2.25747183]
[1751941843350,1.70467052,659.9,659.38,2.25747183]
[1751941844356,1.70467052,659.88,659.42,2.25747183]
[1751941844561,1.70467052,659.88,659.41,2.25747183]
[1751941844960,1.70467052,659.94,659.46,2.25747183]
[1751941845158,1.70467052,659.93,659.47,2.25747183]
[1751941845358,1.70467052,659.96,659.47,2.25747183]
[1751941846059,1.70467052,659.98,659.43,2.25747183]
[1751941846261,1.70467052,659.98,659.42,2.25747183]
[1751941846460,1.70467052,659.99,659.41,2.25747183]
[1751941847462,1.70467052,660.0,659.41,2.25747183]
[1751941847662,1.70467052,660.1,659.4,2.25747183]
[1751941847863,1.70467052,660.11,659.4,2.25747183]
[1751941848258,1.70467052,660.12,659.37,2.25747183]
[1751941848462,1.70467052,660.07,659.33,1.908]
[1751941848659,1.70467052,660.13,659.36,2.25747183]
[1751941849360,1.70467052,660.14,659.35,2.25747183]
[1751941850460,4.0275231,660.15,659.34,2.25747183]
[1751941850764,1.03482776,660.14,659.34,2.25747183]
[1751941850960,1.70467052,660.15,659.34,2.25747183]
[1751941851760,1.70467052,660.16,659.34,2.25747183]
[1751941851970,1.70467052,660.15,659.35,2.25747183]
[1751941852163,1.70467052,660.15,659.34,2.25747183]
[1751941852462,1.70467052,660.16,659.34,2.25747183]
[1751941853065,1.70467052,660.16,659.33,4.16547183]
[1751941853566,1.70467052,660.17,659.33,4.16547183]
[1751941854567,1.70467052,660.17,659.33,1.908]
[1751941855563,1.70467052,660.17,659.33,4.16547183]
[1751941856165,1.70467052,660.18,659.33,1.908]
[1751941857566,1.70467052,660.17,659.34,2.25747183]
[1751941857867,1.70467052,660.17,659.33,4.16547183]
[1751941858266,1.70467052,660.16,659.36,2.25747183]
[1751941859372,1.70467052,660.16,659.35,2.25747183]
[1751941859572,1.70467052,660.16,659.36,2.25747183]
[1751941860074,1.70467052,660.16,659.35,2.25747183]
[1751941861370,1.70467052,660.16,659.37,2.25747183]
[1751941861774,1.70467052,660.16,659.36,2.25747183]
[1751941862175,1.70467052,660.13,659.22,0.26376725]
[1751941862377,1.70467052,660.12,659.22,0.26376725]
[1751941862576,1.70467052,660.07,659.22,0.26376725]
[1751941862774,1.70467052,660.06,659.22,0.26376725]
[1751941863476,1.70467052,660.18,659.22,0.26376725]
[1751941863673,1.70467052,660.12,659.23,1.726]
[1751941863873,1.70467052,660.07,659.23,1.726]
[1751941867172,4.02297005,660.07,659.23,1.726]
[1751941867377,4.02297005,660.06,659.23,1.726]
[1751941867578,1.03227211,660.05,659.23,1.726]
[1751941867779,1.70467052,660.06,659.23,1.726]
[1751941868878,1.70467052,660.04,659.23,1.726]
[1751941869378,1.70467052,660.05,659.23,1.726]
[1751941869675,1.70467052,660.03,659.23,1.726]
[1751941871673,1.70467052,660.06,659.23,1.726]
[1751941873480,1.70467052,660.05,659.23,1.726]
[1751941876780,1.70467052,660.04,659.23,1.726]
[1751941877585,1.70467052,660.03,659.23,1.726]
[1751941878186,1.70467052,660.04,659.23,1.726]
[1751941879386,1.70467052,660.03,659.23,1.726]
[1751941881487,1.70467052,659.99,659.26,2.25747183]
[1751941882982,1.70467052,659.99,659.27,2.25747183]
[1751941884784,1.70467052,660.0,659.24,2.25747183]
[1751941885190,1.70467052,659.94,659.23,1.726]
[1751941887290,1.70467052,659.93,659.23,1.726]
[1751941892689,1.70467052,659.94,659.23,1.726]
[1751941893492,1.70467052,659.93,659.23,1.726]
[1751941894396,1.70467052,659.94,659.23,1.726]
[1751941894795,1.70467052,659.92,659.23,1.726]
[1751941896497,1.70467052,659.98,659.23,1.726]
[1751941896698,1.70467052,660.0,659.23,1.726]
[1751941896896,1.70467052,659.71,659.23,1.726]
[1751941897094,1.70467052,659.55,659.23,1.726]
[1751941897293,1.70467052,659.56,659.23,1.726]
[1751941897498,1.70467052,659.39,659.23,1.726]
[1751941897994,1.70467052,659.46,659.23,1.726]
[1751941898498,1.70467052,659.48,659.23,1.726]
[1751941899298,1.70467052,659.5,659.23,1.726]
[1751941899698,1.02820815,659.49,659.23,1.726]
[1751941899897,1.70467052,659.5,659.23,1.726]
[1751941900398,1.70467052,659.52,659.23,1.726]
[1751941900596,1.70467052,659.51,659.23,1.726]
[1751941900794,1.70467052,659.52,659.23,1.726]
[1751941901801,2.30738492,659.52,659.23,1.726]
[1751941902101,1.02605187,659.51,659.23,1.726]
[1751941902301,1.02605187,659.5,659.23,1.726]
[1751941902496,1.02605187,659.49,659.23,1.726]
[1751941902700,2.30738492,659.72,659.23,1.726]
[1751941902903,1.02605187,659.71,659.23,1.726]
[1751941903204,1.02605187,659.7,659.23,1.726]
[1751941903401,1.02605187,659.69,659.23,1.726]
[1751941903702,1.02605187,659.68,659.23,1.726]
[1751941904002,1.70467052,659.61,659.23,1.726]
[1751941904301,1.70467052,659.56,659.23,1.726]
[1751941904498,1.02605187,659.55,659.23,1.726]
[1751941904697,1.02605187,659.54,659.23,1.726]
[1751941904898,1.70467052,659.47,659.23,1.726]
[1751941905103,1.02605187,659.46,659.23,1.726]
[1751941905404,1.02605187,659.45,659.23,1.726]
[1751941905702,1.02605187,659.44,659.23,1.726]
[1751941905900,1.02605187,659.47,659.23,1.726]
[1751941906104,1.02605187,659.46,659.23,1.726]
[1751941906600,1.02605187,659.45,659.23,1.726]
[1751941906900,1.02605187,659.54,659.23,1.726]
[1751941907104,1.02605187,659.53,659.23,1.726]
[1751941907300,1.02605187,659.52,659.23,1.726]
[1751941907502,1.02605187,659.51,659.23,1.726]
[1751941907699,1.02605187,659.5,659.23,1.726]
[1751941907904,1.02605187,659.49,659.23,1.726]
[1751941908104,1.02605187,659.48,659.23,1.726]
[1751941908399,1.02605187,659.47,659.23,1.726]
[1751941908602,1.02605187,659.46,659.23,1.726]
[1751941908803,1.02605187,659.45,659.23,1.726]
[1751941909001,1.02605187,659.44,659.23,1.726]
[1751941909199,1.02605187,659.54,659.23,1.726]
[1751941909499,1.68967691,659.51,659.23,1.726]
[1751941909705,1.02605187,659.5,659.23,1.726]
[1751941910004,1.02605187,659.49,659.23,1.726]
[1751941910299,1.02605187,659.48,659.23,1.726]
[1751941910498,1.02605187,659.47,659.23,1.726]
[1751941910705,1.02605187,659.46,659.23,1.726]
[1751941911003,1.02605187,659.45,659.23,1.726]
[1751941911202,1.02605187,659.44,659.23,1.726]
[1751941911500,1.02605187,659.5,659.23,1.726]
[1751941911803,1.68967691,659.42,659.23,1.726]
[1751941912003,1.46013689,659.41,659.23,1.726]
[1751941912204,3.1498138,659.4,659.23,1.726]
[1751941912400,1.46013689,659.39,659.23,1.726]
[1751941912705,1.46013689,659.38,659.23,1.726]
[1751941913004,1.46013689,659.37,659.23,1.726]
[1751941913200,1.68967691,659.41,659.23,1.726]
[1751941913201,1.46013689,659.36,659.23,1.726]
[1751941913405,1.46013689,659.35,659.23,1.726]
[1751941913606,1.46013689,659.34,659.23,1.726]
[1751941913806,1.46013689,659.33,659.23,1.726]
[1751941914102,1.46013689,659.32,659.23,1.726]
[1751941914302,1.46013689,659.31,659.23,1.726]
[1751941914503,1.46013689,659.3,659.23,1.726]
[1751941914702,1.46013689,659.29,658.82,0.2639473]
[1751941914905,1.46013689,659.28,658.82,0.2639473]
[1751941915109,1.46013689,659.27,658.82,0.2639473]
[1751941915309,1.46013689,659.26,658.82,0.2639473]
[1751941915506,1.46013689,659.38,658.82,0.2639473]
[1751941915713,1.46013689,659.37,658.82,0.2639473]
[1751941915911,1.46013689,659.36,658.82,0.2639473]
[1751941916113,1.46013689,659.35,658.82,0.2639473]
[1751941916314,1.46013689,659.34,658.82,0.2639473]
[1751941916609,1.46013689,659.33,658.82,0.2639473]
[1751941916809,1.46013689,659.32,658.82,0.2639473]
[1751941917011,1.46013689,659.31,658.82,0.2639473]
[1751941917210,1.46013689,659.3,658.82,0.2639473]
[1751941917411,1.68967691,659.35,658.82,0.2639473]
[1751941917614,1.46013689,659.34,658.82,0.2639473]
[1751941917914,1.46013689,659.33,658.83,2.088]
[1751941918215,1.46013689,659.32,658.83,2.088]
[1751941918417,1.46013689,659.33,658.83,2.088]
[1751941918711,1.46013689,659.32,658.83,2.088]
[1751941918912,3.75772821,659.34,658.83,2.088]
[1751941919213,2.48618876,659.33,658.83,2.088]
[1751941919512,1.46013689,659.32,658.83,2.088]
[1751941919713,2.73157815,659.37,658.83,2.088]
[1751941919917,1.46013689,659.36,658.83,2.088]
[1751941920116,1.46013689,659.35,658.83,2.088]
[1751941920316,1.46013689,659.34,658.83,2.088]
[1751941920517,1.46013689,659.33,658.83,2.088]
[1751941920717,1.46013689,659.43,658.83,2.088]
[1751941920914,1.46013689,659.42,658.83,2.088]
[1751941921117,1.68967691,659.44,658.83,2.088]
[1751941921118,1.46013689,659.41,658.83,2.088]
[1751941921417,1.46013689,659.4,658.83,2.088]
[1751941921713,1.46013689,659.39,658.83,2.088]
[1751941921918,1.46013689,659.38,658.83,2.088]
[1751941922118,1.46013689,659.37,658.83,2.088]
[1751941922318,1.46013689,659.36,658.83,2.088]
[1751941922616,1.46013689,659.35,658.83,2.088]
[1751941922816,1.46013689,659.34,658.83,2.088]
[1751941923115,1.46013689,659.43,658.83,2.088]
[1751941923319,1.46013689,659.42,658.83,2.088]
[1751941923519,1.46013689,659.41,658.83,2.088]
[1751941923820,1.46013689,659.4,658.83,2.088]
[1751941924018,1.46013689,659.39,658.83,2.088]
[1751941924220,1.46013689,659.38,658.83,2.088]
[1751941924416,1.46013689,659.37,658.83,2.088]
[1751941924620,1.46013689,659.36,658.83,2.088]
[1751941924921,1.46013689,659.35,658.83,2.088]
[1751941925120,1.46013689,659.43,658.83,2.088]
[1751941925322,1.46013689,659.42,658.83,2.088]
[1751941925622,1.46013689,659.41,658.83,2.088]
[1751941925820,1.46013689,659.4,658.83,2.088]
[1751941926017,1.46013689,659.39,658.83,2.088]
[1751941926221,1.46013689,659.38,658.83,2.088]
[1751941926418,1.46013689,659.37,658.83,2.088]
[1751941926719,1.46013689,659.36,658.83,2.088]
[1751941927017,1.46013689,659.35,658.83,2.088]
[1751941927321,1.46013689,659.34,658.83,2.088]
[1751941927521,1.46013689,659.33,658.83,2.088]
[1751941927723,1.46013689,659.32,658.83,2.088]
[1751941927923,1.46013689,659.31,658.83,2.088]
[1751941928223,1.46013689,659.3,658.83,2.088]
[1751941928418,1.46013689,659.29,658.83,2.088]
[1751941928622,1.46013689,659.28,658.83,2.088]
[1751941928820,1.46013689,659.27,658.83,2.088]
[1751941929020,1.46013689,659.26,658.83,2.088]
[1751941929221,1.46013689,659.25,658.83,2.088]
[1751941929418,1.46013689,659.24,658.83,2.088]
[1751941929620,1.46013689,659.23,658.83,2.088]
[1751941929919,1.46013689,659.22,658.83,2.088]
[1751941930219,1.46013689,659.21,658.83,2.088]
[1751941930418,1.46013689,659.2,658.83,2.088]
[1751941930720,2.47951418,659.38,658.83,2.088]
[1751941930918,2.47636404,659.37,658.83,2.088]
[1751941931124,2.47636404,659.36,658.83,2.088]
[1751941931324,1.45698675,659.35,658.83,2.088]
[1751941931523,1.45698675,659.34,658.83,2.088]
[1751941931720,1.27056628,659.38,658.83,2.088]
[1751941931721,3.13732244,659.33,658.83,2.088]
[1751941931920,3.13732244,659.32,658.83,2.088]
[1751941932125,3.13732244,659.31,658.83,2.088]
[1751941932422,3.13732244,659.3,658.83,2.088]
[1751941932620,1.45698675,659.29,658.83,2.088]
[1751941932823,1.45698675,659.28,658.83,2.088]
[1751941933021,1.45698675,659.27,658.83,2.088]
[1751941933225,1.45698675,659.26,658.83,2.088]
[1751941933427,1.45698675,659.25,658.83,2.088]
[1751941933624,1.45698675,659.24,658.83,2.088]
[1751941933822,1.45698675,659.23,658.83,2.088]
[1751941934024,1.45698675,659.22,658.83,2.088]
[1751941934225,1.45698675,659.21,658.83,2.088]
[1751941934422,1.45698675,659.2,658.83,2.088]
[1751941934627,1.45698675,659.19,658.83,2.088]
[1751941934923,1.45698675,659.18,658.83,2.088]
[1751941935126,3.74693032,659.24,658.83,2.088]
[1751941935325,2.47636404,659.23,658.83,2.088]
[1751941935524,1.45698675,659.22,658.83,2.088]
[1751941935727,1.45698675,659.21,658.83,2.088]
[1751941935923,1.45698675,659.2,658.83,2.088]
[1751941936125,1.45698675,659.19,658.83,2.088]
[1751941936429,1.45698675,659.18,658.83,2.088]
[1751941936629,1.45698675,659.17,658.83,2.088]
[1751941936829,1.45698675,659.27,658.83,2.088]
[1751941937025,1.45698675,659.26,658.83,2.088]
[1751941937229,1.45698675,659.25,658.83,2.088]
[1751941937526,1.45698675,659.24,658.83,2.088]
[1751941937729,1.45713325,659.23,658.83,2.088]
[1751941938029,1.45713325,659.22,658.83,2.088]
[1751941938229,1.45713325,659.21,658.83,2.088]
[1751941938529,1.45713325,659.2,658.83,2.088]
[1751941938726,1.45713325,659.19,658.83,2.088]
[1751941938926,1.45713325,659.18,658.83,2.088]
[1751941939128,1.45713325,659.17,658.83,2.088]
[1751941939331,1.68050938,659.26,658.83,2.088]
[1751941939527,1.45713325,659.25,658.83,2.088]
[1751941939826,1.45713325,659.24,658.83,2.088]
[1751941940032,1.45713325,659.23,658.83,2.088]
[1751941940327,1.45713325,659.22,658.83,2.088]
[1751941940526,1.45713325,659.21,658.83,2.088]
[1751941940725,1.45713325,659.2,658.83,2.088]
[1751941940929,1.45713325,659.19,658.83,2.088]
[1751941941129,1.45713325,659.18,658.83,2.088]
[1751941941427,1.45713325,659.17,658.83,2.088]
[1751941941627,3.74686396,659.23,658.83,2.088]
[1751941941933,2.28973071,659.23,658.83,2.088]
[1751941942129,1.01937729,659.22,658.83,2.088]
[1751941942327,1.01937729,659.21,658.83,2.088]
[1751941942533,1.01937729,659.33,658.83,2.088]
[1751941942732,1.01937729,659.32,658.83,2.088]
[1751941942934,1.01937729,659.31,658.83,2.088]
[1751941943129,1.01937729,659.3,658.83,2.088]
[1751941943432,1.01937729,659.29,658.83,2.088]
[1751941943633,1.01937729,659.28,658.83,2.088]
[1751941943833,1.01937729,659.27,658.83,2.088]
[1751941944032,1.02311977,659.26,658.83,2.088]
[1751941944231,1.02311977,659.25,658.83,2.088]
[1751941944429,1.02311977,659.24,658.83,2.088]
[1751941944734,1.02311977,659.23,658.83,2.088]
[1751941944933,1.02311977,659.22,658.83,2.088]
[1751941945234,1.02311977,659.21,658.83,2.088]
[1751941945435,1.02311977,659.2,658.83,2.088]
[1751941945635,1.02311977,659.19,658.83,2.088]
[1751941945835,1.02311977,659.18,658.83,2.088]
[1751941946138,1.02311977,659.17,658.83,2.088]
[1751941946435,1.02311977,659.16,658.83,2.088]
[1751941946632,1.02311977,659.15,658.83,2.088]
[1751941946936,1.02311977,659.14,658.83,2.088]
[1751941947134,1.02311977,659.13,658.83,2.088]
[1751941947436,1.02311977,659.12,658.83,2.088]
[1751941947632,1.02311977,659.11,658.83,2.088]
[1751941947837,1.02311977,659.29,658.83,2.088]
[1751941948033,1.02311977,659.28,658.83,2.088]
[1751941948233,1.02311977,659.27,658.83,2.088]
[1751941948533,1.02311977,659.26,658.83,2.088]
[1751941948731,1.68050938,659.3,658.83,2.088]
[1751941948732,1.02311977,659.25,658.83,2.088]
[1751941948935,1.02311977,659.24,658.83,2.088]
[1751941949133,1.02311977,659.23,658.83,2.088]
[1751941949433,1.02311977,659.22,658.83,2.088]
[1751941949631,1.02311977,659.21,658.83,2.088]
[1751941949935,1.68050938,659.29,658.83,2.088]
[1751941949936,1.02311977,659.2,658.83,2.088]
[1751941950136,1.02311977,659.19,658.83,2.088]
[1751941950334,1.02311977,659.18,658.83,2.088]
[1751941950533,1.02311977,659.17,658.83,2.088]
[1751941950731,1.02311977,659.16,658.83,2.088]
[1751941950933,1.02311977,659.27,658.83,2.088]
[1751941951232,1.02311977,659.26,658.83,2.088]
[1751941951432,1.02311977,659.25,658.83,2.088]
[1751941951733,1.02311977,659.24,658.83,2.088]
[1751941951934,1.02311977,659.23,658.83,2.088]
[1751941952134,1.02311977,659.22,658.83,2.088]
[1751941952433,1.02311977,659.21,658.83,2.088]
[1751941952736,1.02311977,659.2,658.83,2.088]
[1751941952939,1.02311977,659.25,658.83,2.088]
[1751941953139,1.02311977,659.24,658.83,2.088]
[1751941953338,1.02311977,659.23,658.83,2.088]
[1751941953537,1.02311977,659.24,658.83,2.088]
[1751941953737,1.02311977,659.23,658.83,2.088]
[1751941953941,1.02311977,659.24,658.83,2.088]
[1751941954241,1.68050938,659.24,658.83,2.088]
[1751941955037,1.68050938,659.25,658.83,2.088]
[1751941955441,1.68050938,659.23,658.83,2.088]
[1751941956339,1.68050938,659.22,658.83,2.088]
[1751941956842,1.68050938,659.2,658.83,2.088]
[1751941961551,1.68050938,659.24,658.83,2.088]
[1751941961853,2.30415501,659.29,658.64,0.26404543]
[1751941962053,2.30415501,659.3,658.64,0.26404543]